bitfinex-derivatives/quotes_BNBF0:USTF0_20241225
["timestamp","ask_amount","ask_price","bid_price","bid_amount"]
[1735093455953,0.26301091,699.75,698.2,0.28645087]
[1735093456159,0.28577552,699.85,698.2,0.28645087]
[1735093456160,1.07026258,699.77,698.2,0.28645087]
[1735093457154,0.28577552,699.85,698.2,0.28645087]
[1735093468261,1.07026258,700.32,698.2,0.28645087]
[1735093468456,0.26288383,700.31,698.2,0.28645087]
[1735093468653,0.28559188,700.3,698.2,0.28645087]
[1735093468853,0.26288383,700.29,698.2,0.28645087]
[1735093470263,0.28560004,700.28,698.2,0.28645087]
[1735093470459,0.26288383,700.27,698.2,0.28645087]
[1735093471458,0.28560412,700.27,698.2,0.28645087]
[1735093471660,0.26287292,700.26,698.2,0.28645087]
[1735093474264,0.28560412,700.27,698.2,0.28645087]
[1735093474464,0.26287923,700.26,698.2,0.28645087]
[1735093475066,0.28560412,700.27,698.2,0.28645087]
[1735093475268,0.26288137,700.26,698.2,0.28645087]
[1735093477170,0.28560412,700.27,698.2,0.28645087]
[1735093477371,0.2628792,700.26,698.2,0.28645087]
[1735093480072,0.54852096,700.25,698.2,0.28645087]
[1735093480271,0.26290868,700.24,698.2,0.28645087]
[1735093482672,0.26292315,700.23,698.2,0.28645087]
[1735093482875,0.26292315,700.22,698.2,0.28645087]
[1735093483077,0.26292315,700.21,698.2,0.28645087]
[1735093483274,0.26292315,700.2,698.2,0.28645087]
[1735093483469,0.26292025,700.19,698.2,0.28645087]
[1735093483669,0.26292025,700.18,698.2,0.28645087]
[1735093483869,0.26292025,700.17,698.2,0.28645087]
[1735093484070,0.26292025,700.16,698.2,0.28645087]
[1735093484273,0.26292025,700.15,698.2,0.28645087]
[1735093484472,0.26292025,700.14,698.2,0.28645087]
[1735093484668,0.26292025,700.13,698.2,0.28645087]
[1735093484871,0.26292025,700.12,698.2,0.28645087]
[1735093485071,0.26292025,700.11,698.2,0.28645087]
[1735093485274,0.26292025,700.1,698.2,0.28645087]
[1735093485473,0.26292025,700.09,698.2,0.28645087]
[1735093485679,0.26291774,700.08,698.2,0.28645087]
[1735093485875,0.26291774,700.07,698.2,0.28645087]
[1735093486076,0.26291774,700.06,698.2,0.28645087]
[1735093486280,0.26291774,700.05,698.2,0.28645087]
[1735093486481,0.26291774,700.04,698.2,0.28645087]
[1735093486674,0.26291774,700.03,698.2,0.28645087]
[1735093486878,0.26291774,700.02,698.2,0.28645087]
[1735093487080,0.26291774,700.01,698.2,0.28645087]
[1735093487280,0.26291774,700.0,698.2,0.28645087]
[1735093487475,0.26291774,699.99,698.2,0.28645087]
[1735093487680,0.26291774,699.98,698.2,0.28645087]
[1735093487875,0.28561228,700.25,698.2,0.28645087]
[1735093488082,0.26290737,700.24,698.2,0.28645087]
[1735093488277,0.28561228,700.25,698.2,0.28645087]
[1735093488580,0.28562043,700.23,698.2,0.28645087]
[1735093488774,0.26291545,700.22,698.2,0.28645087]
[1735093489682,0.28562859,700.21,698.2,0.28645087]
[1735093489882,0.26291545,700.2,698.2,0.28645087]
[1735093490075,0.28563675,700.19,698.2,0.28645087]
[1735093490280,0.26291545,700.18,698.2,0.28645087]
[1735093491177,0.26290623,700.17,698.2,0.28645087]
[1735093491377,0.26290623,700.16,698.2,0.28645087]
[1735093491581,1.07026258,700.13,698.2,1.35705795]
[1735093491782,0.26290623,700.12,698.2,1.35705795]
[1735093492280,1.33316881,700.12,698.2,0.28645087]
[1735093492481,0.26290623,700.11,698.2,0.28645087]
[1735093493378,0.26290623,700.1,698.2,0.28645087]
[1735093493582,0.26290623,700.09,698.2,0.28645087]
[1735093493882,0.26290623,700.08,698.2,0.28645087]
[1735093494083,0.26290623,700.07,698.2,0.28645087]
[1735093494382,0.26290623,700.06,698.2,0.28645087]
[1735093494575,0.26290623,700.05,698.2,0.28645087]
[1735093494775,0.26290623,700.04,698.2,0.28645087]
[1735093494981,0.26290623,700.03,698.2,0.28645087]
[1735093495178,0.26290623,700.02,698.2,0.28645087]
[1735093495380,0.26290623,700.01,698.2,0.28645087]
[1735093495580,0.26290623,700.0,698.2,0.28645087]
[1735093495883,0.26290623,699.99,698.2,0.28645087]
[1735093496084,1.07026258,700.15,698.2,0.28645087]
[1735093496085,0.26290623,699.98,698.2,0.28645087]
[1735093496284,0.26290623,699.97,698.2,0.28645087]
[1735093496578,0.26290623,699.96,698.2,0.28645087]
[1735093496785,0.26290623,699.95,698.2,0.28645087]
[1735093496984,0.26290623,699.94,698.2,0.28645087]
[1735093497283,1.07026258,700.13,698.2,0.28645087]
[1735093497284,0.26290623,699.93,698.2,0.28645087]
[1735093497484,0.26290623,699.92,698.2,0.28645087]
[1735093497784,0.26290623,699.91,698.2,0.28645087]
[1735093497984,0.26290623,699.9,698.2,0.28645087]
[1735093498184,0.26290623,699.89,698.2,0.28645087]
[1735093498385,0.26290623,699.88,698.2,0.28645087]
[1735093498585,0.26290623,699.87,698.2,0.28645087]
[1735093498886,0.26290623,699.86,698.2,0.28645087]
[1735093499085,0.26290623,699.85,698.2,0.28645087]
[1735093499385,0.26290623,699.84,698.2,0.28645087]
[1735093499683,1.07026258,700.09,698.2,0.28645087]
[1735093499884,0.26292465,700.08,698.2,0.28645087]
[1735093500586,0.26292465,700.07,698.2,0.28645087]
[1735093500788,0.26292465,700.06,698.2,0.28645087]
[1735093500986,0.26292465,700.05,698.2,0.28645087]
[1735093501193,0.26292465,700.04,698.2,0.28645087]
[1735093501388,0.26292465,700.03,698.2,0.28645087]
[1735093501588,0.26292465,700.02,698.2,0.28645087]
[1735093501886,0.26292465,700.01,698.2,0.28645087]
[1735093502088,0.26292465,700.0,698.2,0.28645087]
[1735093502386,0.26292465,699.99,698.2,0.28645087]
[1735093502585,0.26292465,699.98,698.2,0.28645087]
[1735093502787,0.26292465,699.97,698.21,1.07060708]
[1735093502985,0.26292465,699.96,698.21,1.07060708]
[1735093503185,0.26292465,699.95,698.21,1.07060708]
[1735093503488,0.26292465,699.94,698.21,1.07060708]
[1735093503688,0.26292465,699.93,698.21,1.07060708]
[1735093503886,0.26292465,699.92,698.24,1.07060708]
[1735093504085,0.26292465,699.91,698.24,1.07060708]
[1735093504283,0.26291057,699.9,698.24,1.07060708]
[1735093504490,0.26291057,699.89,698.24,1.07060708]
[1735093504691,0.26291057,699.88,698.24,1.07060708]
[1735093504984,0.26291057,699.87,698.24,1.07060708]
[1735093505189,0.26291057,699.86,698.24,1.07060708]
[1735093505384,0.26291057,699.85,698.24,1.07060708]
[1735093505590,0.26291057,699.84,698.24,1.07060708]
[1735093505790,1.07026258,700.06,698.24,1.07060708]
[1735093505989,0.26290673,700.05,698.24,1.07060708]
[1735093506184,1.33316931,700.05,698.27,1.07060708]
[1735093506382,0.26290673,700.04,698.27,1.07060708]
[1735093507099,0.26290673,700.04,698.2,0.28645087]
[1735093507393,0.26290673,700.03,698.2,0.28645087]
[1735093507596,0.26290673,700.02,698.2,0.28645087]
[1735093507893,0.26292431,700.01,698.2,0.28645087]
[1735093508094,0.26292431,700.0,698.2,0.28645087]
[1735093508295,0.26292431,699.99,698.2,0.28645087]
[1735093508494,0.26292431,699.98,698.2,0.28645087]
[1735093508689,0.26292431,699.97,698.2,0.28645087]
[1735093508892,0.26292912,699.96,698.2,0.28645087]
[1735093509192,0.26292912,699.95,698.2,0.28645087]
[1735093509392,0.26292912,699.94,698.2,0.28645087]
[1735093509591,0.26292912,699.93,698.2,0.28645087]
[1735093509791,1.07026258,700.14,698.2,0.28645087]
[1735093509992,0.26292818,700.13,698.2,0.28645087]
[1735093511597,1.07026258,699.91,698.2,0.28645087]
[1735093511795,0.26292818,699.9,698.2,0.28645087]
[1735093512695,0.26295088,699.89,698.2,0.28645087]
[1735093512890,0.26295088,699.88,698.2,0.28645087]
[1735093513098,0.26295088,699.87,698.2,0.28645087]
[1735093513292,0.26295088,699.86,698.2,0.28645087]
[1735093513493,0.26295088,699.85,698.2,0.28645087]
[1735093513693,1.07026258,699.91,698.2,0.28645087]
[1735093513694,0.26295088,699.9,698.2,0.28645087]
[1735093513897,0.26295088,699.89,698.2,0.28645087]
[1735093514198,0.26295088,699.88,698.2,0.28645087]
[1735093514398,0.26295088,699.87,698.2,0.28645087]
[1735093514598,0.26295088,699.86,698.2,0.28645087]
[1735093514798,0.26295088,699.85,698.2,0.28645087]
[1735093514998,0.26295088,699.84,698.2,0.28645087]
[1735093515194,0.26295088,699.83,698.2,0.28645087]
[1735093515396,1.07026258,699.91,698.2,0.28645087]
[1735093515397,0.26295674,699.82,698.2,0.28645087]
[1735093515592,0.26295674,699.81,698.2,0.28645087]
[1735093515795,0.26295674,699.8,698.2,0.28645087]
[1735093515998,0.26295674,699.79,698.2,0.28645087]
[1735093516199,0.26295019,699.78,698.2,0.28645087]
[1735093516394,0.28563675,700.19,698.2,0.28645087]
[1735093516395,0.26295019,699.77,698.2,0.28645087]
[1735093516699,0.26295019,699.76,698.2,0.28645087]
[1735093517000,0.26295019,699.75,698.2,0.28645087]
[1735093517195,0.26295903,699.74,698.2,0.28645087]
[1735093517397,0.26295903,699.73,698.2,0.28645087]
[1735093517699,1.07026258,699.93,698.2,0.28645087]
[1735093517894,0.26296163,699.92,698.2,0.28645087]
[1735093518098,1.07026258,699.93,698.2,0.28645087]
[1735093518300,0.26296182,699.92,698.2,0.28645087]
[1735093519797,0.26296182,699.91,698.2,0.28645087]
[1735093519997,0.26296182,699.9,698.2,0.28645087]
[1735093520196,0.26296182,699.89,698.2,0.28645087]
[1735093520399,0.26296182,699.88,698.2,0.28645087]
[1735093520600,0.26296182,699.87,698.2,0.28645087]
[1735093520901,0.2629764,699.86,698.2,0.28645087]
[1735093521099,0.2629764,699.85,698.2,0.28645087]
[1735093521297,0.2629764,699.84,698.2,0.28645087]
[1735093521496,0.2629764,699.83,698.2,0.28645087]
[1735093521800,0.2629764,699.82,698.2,0.28645087]
[1735093521997,0.2629764,699.81,698.2,0.28645087]
[1735093522203,0.2629764,699.8,698.2,0.28645087]
[1735093522402,0.2629764,699.79,698.2,0.28645087]
[1735093522700,1.07026258,700.07,698.2,0.28645087]
[1735093522701,0.2629764,699.78,698.2,0.28645087]
[1735093522900,0.28563675,700.19,698.2,0.28645087]
[1735093522901,0.2629764,699.77,698.2,0.28645087]
[1735093523104,0.2629764,699.76,698.2,0.28645087]
[1735093523303,1.07026258,700.09,698.2,0.28645087]
[1735093523598,0.2629861,700.08,698.2,0.28645087]
[1735093523803,1.33324868,700.08,698.2,0.28645087]
[1735093524104,0.2629861,700.07,698.2,0.28645087]
[1735093524296,1.07026258,700.08,698.2,0.28645087]
[1735093524500,0.54866518,700.07,698.2,0.28645087]
[1735093524704,0.26297947,700.06,698.2,0.28645087]
[1735093526405,0.26294,700.05,698.2,0.28645087]
[1735093527206,1.33320258,700.05,698.2,0.28645087]
[1735093527408,0.26294,700.04,698.2,0.28645087]
[1735093528001,1.07026258,699.95,698.23,1.07060708]
[1735093528204,0.26294,699.94,698.23,1.07060708]
[1735093529007,0.26294,699.94,698.2,0.28645087]
[1735093529008,0.26294,699.94,698.24,1.07060708]
[1735093529308,0.26294,699.93,698.24,1.07060708]
[1735093529508,0.26294,699.92,698.24,1.07060708]
[1735093529709,0.26294,699.91,698.24,1.07060708]
[1735093529908,0.26294,699.9,698.24,1.07060708]
[1735093530110,0.26294,699.89,698.24,1.07060708]
[1735093530313,0.26294,699.88,698.24,1.07060708]
[1735093530508,0.26294,699.87,698.24,1.07060708]
[1735093530708,0.26294,699.86,698.24,1.07060708]
[1735093530904,0.26294,699.85,698.22,1.07060708]
[1735093531207,1.07026258,699.98,698.26,0.28642625]
[1735093531409,0.262906,699.97,698.26,0.28642625]
[1735093532009,0.28568571,700.07,698.26,0.28642625]
[1735093532209,0.26290622,700.06,698.26,0.28642625]
[1735093532610,0.2629012,700.05,698.26,0.28642625]
[1735093532810,0.2629012,700.04,698.26,0.28642625]
[1735093533011,0.28568571,700.07,698.26,0.28642625]
[1735093533408,0.26289987,700.06,698.26,0.28642625]
[1735093534208,0.28568571,700.07,698.26,0.28642625]
[1735093539014,0.26288237,700.06,698.26,0.28642625]
[1735093540011,0.26288279,700.05,698.26,0.28642625]
[1735093540215,0.26288279,700.04,698.26,0.28642625]
[1735093540418,0.26288279,700.03,698.26,0.28642625]
[1735093540616,0.28568571,700.07,698.26,0.28642625]
[1735093540617,0.26288279,700.02,698.26,0.28642625]
[1735093540916,0.26288209,700.01,698.26,0.28642625]
[1735093541111,0.26288209,700.0,698.26,0.28642625]
[1735093541312,0.26288209,699.99,698.26,0.28642625]
[1735093541510,0.26288209,699.98,698.26,0.28642625]
[1735093541713,0.26288209,699.97,698.26,0.28642625]
[1735093541916,0.26288209,699.96,698.26,0.28642625]
[1735093542113,0.26288209,699.95,698.26,0.28642625]
[1735093542314,0.26288209,699.94,698.26,0.28642625]
[1735093542511,0.28568571,700.07,698.26,0.28642625]
[1735093543012,0.26288588,700.06,698.26,0.28642625]
[1735093545514,0.28568571,700.07,698.26,0.28642625]
[1735093545820,0.26290359,700.06,698.26,0.28642625]
[1735093548423,0.28568571,700.07,698.26,0.28642625]
[1735093548424,0.26290528,700.05,698.26,0.28642625]
[1735093548623,0.26290528,700.04,698.26,0.28642625]
[1735093548821,0.26290528,700.03,698.26,0.28642625]
[1735093549021,0.26290528,700.02,698.26,0.28642625]
[1735093549222,0.26290576,700.01,698.26,0.28642625]
[1735093549522,0.26290576,700.0,698.26,0.28642625]
[1735093549722,0.26290576,699.99,698.26,0.28642625]
[1735093549927,0.26290576,699.98,698.26,0.28642625]
[1735093550122,0.28568571,700.07,698.26,0.28642625]
[1735093550123,0.26290576,699.97,698.26,0.28642625]
[1735093550320,0.26290576,699.96,698.26,0.28642625]
[1735093550520,0.26290576,699.95,698.26,0.28642625]
[1735093550718,0.26290576,699.94,698.26,0.28642625]
[1735093550921,0.26290576,699.93,698.26,0.28642625]
[1735093551122,0.26290576,699.92,698.26,0.28642625]
[1735093551324,0.26290576,699.91,698.26,0.28642625]
[1735093551520,0.26290576,699.9,698.26,0.28642625]
[1735093551725,0.26290576,699.89,698.26,0.28642625]
[1735093551918,0.26290576,699.88,698.26,0.28642625]
[1735093552118,0.26290576,699.87,698.26,0.28642625]
[1735093552323,0.26290576,699.86,698.26,0.28642625]
[1735093552521,0.26290576,699.85,698.26,0.28642625]
[1735093552721,0.26290576,699.84,698.26,0.28642625]
[1735093552926,0.28568571,700.07,698.26,0.28642625]
[1735093553126,0.26291462,700.06,698.26,0.28642625]
[1735093554021,0.26291656,700.05,698.26,0.28642625]
[1735093554228,0.26291656,700.04,698.26,0.28642625]
[1735093554426,0.26291656,700.03,698.26,0.28642625]
[1735093554623,0.26291656,700.02,698.26,0.28642625]
[1735093554928,0.26291656,700.01,698.26,0.28642625]
[1735093555129,0.26291656,700.0,698.26,0.28642625]
[1735093555323,0.26291656,699.99,698.26,0.28642625]
[1735093555527,0.28568571,700.07,698.26,0.28642625]
[1735093555528,0.26291656,699.98,698.26,0.28642625]
[1735093555827,0.28568571,700.07,698.26,0.28642625]
[1735093555828,0.26291656,699.97,698.26,0.28642625]
[1735093556027,0.26291656,699.96,698.26,0.28642625]
[1735093556231,0.26291656,699.95,698.26,0.28642625]
[1735093556432,0.26291656,699.94,698.26,0.28642625]
[1735093556632,0.28568571,700.07,698.26,0.28642625]
[1735093556832,0.26290525,700.06,698.26,0.28642625]
[1735093557532,0.26291118,700.05,698.26,0.28642625]
[1735093557732,0.26291118,700.04,698.26,0.28642625]
[1735093557929,0.26291118,700.03,698.26,0.28642625]
[1735093558136,0.28568571,700.07,698.26,0.28642625]
[1735093558137,0.26291118,700.02,698.26,0.28642625]
[1735093558335,0.26291118,700.01,698.26,0.28642625]
[1735093558632,0.26291118,700.0,698.26,0.28642625]
[1735093558833,0.26291118,699.99,698.26,0.28642625]
[1735093559035,0.26291118,699.98,698.26,0.28642625]
[1735093559236,0.26291118,699.97,698.26,0.28642625]
[1735093559530,0.26291118,699.96,698.26,0.28642625]
[1735093559735,0.26291118,699.95,698.26,0.28642625]
[1735093559935,0.26291026,699.94,698.26,0.28642625]
[1735093560133,1.07026258,700.06,698.26,0.28642625]
[1735093560134,0.26291026,699.93,698.26,0.28642625]
[1735093560434,0.26291026,699.92,698.26,0.28642625]
[1735093560636,0.26291026,699.91,698.26,0.28642625]
[1735093560835,1.07026258,700.06,698.26,0.28642625]
[1735093561138,1.07026258,700.03,698.26,0.28642625]
[1735093562057,0.28568571,700.07,698.26,0.28642625]
[1735093562252,0.26293821,700.06,698.26,0.28642625]
[1735093563736,1.07026258,699.95,698.26,0.28642625]
[1735093563938,0.26293821,699.94,698.26,0.28642625]
[1735093564737,0.26293821,699.93,698.26,0.28642625]
[1735093564937,0.26293821,699.92,698.26,0.28642625]
[1735093565139,0.26293821,699.91,698.26,0.28642625]
[1735093565339,0.26293821,699.9,698.26,0.28642625]
[1735093565539,0.26293821,699.89,698.26,0.28642625]
[1735093565736,0.26293821,699.88,698.26,0.28642625]
[1735093565942,0.26293821,699.87,698.26,0.28642625]
[1735093566142,0.26293821,699.86,698.26,0.28642625]
[1735093566340,0.26293821,699.85,698.26,0.28642625]
[1735093566539,0.26293821,699.84,698.26,0.28642625]
[1735093566740,0.26293821,699.83,698.26,0.28642625]
[1735093566952,0.26293821,699.82,698.26,0.28642625]
[1735093567176,0.26298897,699.81,698.26,0.28642625]
[1735093567374,0.26298897,699.8,698.26,0.28642625]
[1735093567666,0.26298897,699.79,698.26,0.28642625]
[1735093567868,0.26298897,699.78,698.26,0.28642625]
[1735093568063,0.26298897,699.77,698.26,0.28642625]
[1735093568255,0.26298897,699.76,698.26,0.28642625]
[1735093568464,0.26298897,699.75,698.26,0.28642625]
[1735093568665,0.26298897,699.74,698.26,0.28642625]
[1735093568855,0.26298897,699.73,698.26,0.28642625]
[1735093569062,0.26298897,699.72,698.26,0.28642625]
[1735093569269,0.26298897,699.71,698.26,0.28642625]
[1735093569464,0.26298897,699.7,698.26,0.28642625]
[1735093569760,0.26298897,699.69,698.26,0.28642625]
[1735093569958,0.26298897,699.68,698.26,0.28642625]
[1735093570157,1.07026258,700.0,698.26,0.28642625]
[1735093570358,0.54873541,699.99,698.26,0.28642625]
[1735093570557,0.26301705,699.98,698.26,0.28642625]
[1735093570764,0.54873949,699.98,698.26,0.28642625]
[1735093570964,0.26301705,699.97,698.26,0.28642625]
[1735093571772,0.28573061,699.96,698.26,0.28642625]
[1735093571981,0.26301705,699.95,698.26,0.28642625]
[1735093572574,0.28573061,699.96,698.26,0.28642625]
[1735093572770,0.26305519,699.95,698.26,0.28642625]
[1735093573076,0.28574286,699.93,698.26,0.28642625]
[1735093573276,0.26305519,699.92,698.26,0.28642625]
[1735093573570,0.2857551,699.9,698.26,0.28642625]
[1735093573778,0.26305519,699.89,698.26,0.28642625]
[1735093574171,0.28576327,699.88,698.26,0.28642625]
[1735093574375,0.26305519,699.87,698.26,0.28642625]
[1735093575575,0.54883403,699.86,698.26,0.28642625]
[1735093575772,0.54883811,699.85,698.26,0.28642625]
[1735093575977,0.26306259,699.84,698.26,0.28642625]
[1735093576373,0.28578369,699.83,698.26,0.28642625]
[1735093576574,0.26306259,699.82,698.26,0.28642625]
[1735093578263,0.26304663,699.81,698.26,0.28642625]
[1735093578472,0.26304663,699.8,698.26,0.28642625]
[1735093578660,0.26304663,699.79,698.26,0.28642625]
[1735093578863,0.26304663,699.78,698.26,0.28642625]
[1735093579054,0.26304663,699.77,698.26,0.28642625]
[1735093579355,0.26304663,699.76,698.26,0.28642625]
[1735093579549,0.26304663,699.75,698.26,0.28642625]
[1735093579748,0.26304663,699.74,698.26,0.28642625]
[1735093579950,0.26304663,699.73,698.26,0.28642625]
[1735093580150,0.26304663,699.72,698.26,0.28642625]
[1735093580356,0.26304663,699.71,698.26,0.28642625]
[1735093580554,0.26304663,699.7,698.26,0.28642625]
[1735093580754,0.26304663,699.69,698.26,0.28642625]
[1735093581053,0.26304663,699.68,698.26,0.28642625]
[1735093581254,0.26304663,699.67,698.26,0.28642625]
[1735093581454,0.26304663,699.66,698.26,0.28642625]
[1735093581650,0.26304663,699.65,698.26,0.28642625]
[1735093581857,0.26302868,699.64,698.26,0.28642625]
[1735093582052,0.26302868,699.63,698.26,0.28642625]
[1735093582251,0.26302868,699.62,698.26,0.28642625]
[1735093582453,0.26302868,699.61,698.26,0.28642625]
[1735093582754,0.26302868,699.6,698.26,0.28642625]
[1735093582955,0.26302868,699.59,698.26,0.28642625]
[1735093583156,0.26302868,699.58,698.26,0.28642625]
[1735093583356,0.26302868,699.57,698.26,0.28642625]
[1735093583658,0.26302868,699.56,698.26,0.28642625]
[1735093583853,0.26301408,699.55,698.26,0.28642625]
[1735093584058,0.26301408,699.54,698.26,0.28642625]
[1735093584257,0.26301408,699.53,698.26,0.28642625]
[1735093584557,0.26301408,699.52,698.26,0.28642625]
[1735093584758,0.26301408,699.51,698.26,0.28642625]
[1735093584957,0.26301408,699.5,698.26,0.28642625]
[1735093585153,0.28578369,699.83,698.26,0.28642625]
[1735093585350,0.26300078,699.82,698.26,0.28642625]
[1735093589361,0.2630157,699.81,698.26,0.28642625]
[1735093589555,0.28578369,699.83,698.26,0.28642625]
[1735093589556,0.2630157,699.8,698.26,0.28642625]
[1735093589859,0.2630157,699.79,698.26,0.28642625]
[1735093590057,0.2630157,699.78,698.26,0.28642625]
[1735093590258,0.2630157,699.77,698.26,0.28642625]
[1735093590558,0.2630157,699.76,698.26,0.28642625]
[1735093590857,0.2630157,699.75,698.26,0.28642625]
[1735093591059,0.2630157,699.74,698.26,0.28642625]
[1735093591258,0.2630157,699.73,698.26,0.28642625]
[1735093591558,0.2630157,699.72,698.26,0.28642625]
[1735093591758,0.2630157,699.71,698.26,0.28642625]
[1735093591959,0.2630157,699.7,698.26,0.28642625]
[1735093592160,0.26301247,699.69,698.26,0.28642625]
[1735093592360,0.26301247,699.68,698.26,0.28642625]
[1735093592560,0.26301247,699.67,698.26,0.28642625]
[1735093592860,0.26301247,699.66,698.26,0.28642625]
[1735093593160,0.26301247,699.65,698.26,0.28642625]
[1735093593459,0.26301247,699.64,698.26,0.28642625]
[1735093593659,0.26301247,699.63,698.26,0.28642625]
[1735093593858,0.26301247,699.62,698.26,0.28642625]
[1735093594055,0.26301247,699.61,698.26,0.28642625]
[1735093594259,0.26301247,699.6,698.26,0.28642625]
[1735093594459,0.26301247,699.59,698.26,0.28642625]
[1735093594659,0.26301247,699.58,698.26,0.28642625]
[1735093594960,0.26301247,699.57,698.26,0.28642625]
[1735093595161,0.26301247,699.56,698.26,0.28642625]
[1735093595361,0.26301247,699.55,698.26,0.28642625]
[1735093595562,0.26301247,699.54,698.26,0.28642625]
[1735093595765,0.26301247,699.53,698.26,0.28642625]
[1735093595960,0.26301247,699.52,698.26,0.28642625]
[1735093596157,0.26301247,699.51,698.26,0.28642625]
[1735093596463,0.26301247,699.5,698.26,0.28642625]
[1735093596658,0.26301247,699.49,698.26,0.28642625]
[1735093596860,1.07026258,699.75,698.26,0.28642625]
[1735093597064,0.26305034,699.74,698.26,0.28642625]
[1735093597865,0.26305034,699.73,698.26,0.28642625]
[1735093598065,0.28578369,699.83,698.26,0.28642625]
[1735093598066,0.26305034,699.72,698.26,0.28642625]
[1735093598259,0.54888304,699.71,698.26,0.28642625]
[1735093598463,0.54890462,699.7,698.26,0.28642625]
[1735093598667,0.26306784,699.69,698.26,0.28642625]
[1735093600561,0.28583678,699.7,698.26,0.28642625]
[1735093610375,0.26304554,699.69,698.26,0.28642625]
[1735093611676,0.28583678,699.7,698.26,0.28642625]
[1735093611677,0.26306336,699.68,698.26,0.28642625]
[1735093611973,0.26306336,699.67,698.26,0.28642625]
[1735093612174,0.26306336,699.66,698.26,0.28642625]
[1735093612371,0.26306336,699.65,698.26,0.28642625]
[1735093612571,0.26306336,699.64,698.26,0.28642625]
[1735093612771,0.26306336,699.63,698.26,0.28642625]
[1735093612969,0.26306336,699.62,698.26,0.28642625]
[1735093613172,0.26306336,699.61,698.26,0.28642625]
[1735093613373,0.26306336,699.6,698.26,0.28642625]
[1735093613570,0.26306336,699.59,698.26,0.28642625]
[1735093613773,0.26306336,699.58,698.26,0.28642625]
[1735093613973,0.26306336,699.57,698.26,0.28642625]
[1735093614173,0.28583678,699.7,698.26,0.28642625]
[1735093614371,0.26304525,699.69,698.26,0.28642625]
[1735093615073,0.26304838,699.68,698.26,0.28642625]
[1735093615277,0.26304838,699.67,698.26,0.28642625]
[1735093615472,0.26304838,699.66,698.26,0.28642625]
[1735093615674,0.26304838,699.65,698.26,0.28642625]
[1735093615876,0.26304838,699.64,698.26,0.28642625]
[1735093616075,0.26304838,699.63,698.26,0.28642625]
[1735093616279,0.26304838,699.62,698.26,0.28642625]
[1735093616579,0.26304838,699.61,698.26,0.28642625]
[1735093616772,0.26304838,699.6,698.26,0.28642625]
[1735093616971,0.28583678,699.7,698.26,0.28642625]
[1735093616972,0.26304838,699.59,698.26,0.28642625]
[1735093617174,1.07026258,699.65,698.26,0.28642625]
[1735093617377,0.26306612,699.64,698.26,0.28642625]
[1735093617879,1.3333287,699.64,698.26,0.28642625]
[1735093618179,0.26306612,699.63,698.26,0.28642625]
[1735093618778,1.3333287,699.63,698.26,0.28642625]
[1735093618978,0.26306612,699.62,698.26,0.28642625]
[1735093620076,0.26304287,699.61,698.26,0.28642625]
[1735093620278,0.26304287,699.6,698.26,0.28642625]
[1735093620476,0.26304287,699.59,698.26,0.28642625]
[1735093620773,0.26304287,699.58,698.26,0.28642625]
[1735093620978,0.26304287,699.57,698.26,0.28642625]
[1735093621174,0.26304287,699.56,698.26,0.28642625]
[1735093621373,0.26304287,699.55,698.26,0.28642625]
[1735093621577,0.26304287,699.54,698.26,0.28642625]
[1735093621779,1.07026258,699.68,698.26,0.28642625]
[1735093621975,1.07026258,699.62,698.26,0.28642625]
[1735093622179,0.26306547,699.61,698.26,0.28642625]
[1735093622679,1.33332805,699.61,698.26,0.28642625]
[1735093622883,0.26306547,699.6,698.26,0.28642625]
[1735093623775,0.26306547,699.59,698.26,0.28642625]
[1735093623979,0.26306547,699.61,698.26,0.28642625]
[1735093624280,1.07026258,699.62,698.26,0.28642625]
[1735093624281,0.26306547,699.6,698.26,0.28642625]
[1735093624477,0.26306547,699.59,698.26,0.28642625]
[1735093624674,0.26306547,699.58,698.26,0.28642625]
[1735093624980,0.26306547,699.57,698.26,0.28642625]
[1735093625177,0.26306547,699.56,698.26,0.28642625]
[1735093625374,0.26306547,699.55,698.26,0.28642625]
[1735093625680,0.26306547,699.54,698.26,0.28642625]
[1735093625876,0.26306547,699.53,698.26,0.28642625]
[1735093626178,0.26306547,699.52,698.26,0.28642625]
[1735093626376,0.26306547,699.51,698.26,0.28642625]
[1735093626678,0.28583678,699.7,698.26,0.28642625]
[1735093626679,0.26306547,699.5,698.26,0.28642625]
[1735093626880,0.26306547,699.49,698.26,0.28642625]
[1735093627080,0.26306547,699.48,698.26,0.28642625]
[1735093627280,0.26306547,699.47,698.26,0.28642625]
[1735093627481,0.26306547,699.46,698.26,0.28642625]
[1735093627683,0.26306547,699.45,698.26,0.28642625]
[1735093627983,1.07026258,699.6,698.26,0.28642625]
[1735093627984,0.26306547,699.44,698.26,0.28642625]
[1735093628282,0.26306547,699.43,698.26,0.28642625]
[1735093628482,0.26306547,699.42,698.26,0.28642625]
[1735093628682,0.26306547,699.41,698.26,0.28642625]
[1735093628880,0.26306547,699.4,698.26,0.28642625]
[1735093629088,1.07026258,699.58,698.26,0.28642625]
[1735093629281,0.26304658,699.57,698.26,0.28642625]
[1735093630182,0.2630469,699.56,698.26,0.28642625]
[1735093630483,0.2630469,699.55,698.26,0.28642625]
[1735093630683,0.2630469,699.54,698.26,0.28642625]
[1735093630883,0.2630469,699.53,698.26,0.28642625]